bitfinex/quotes_SOLUSD_20250728
["timestamp","ask_amount","ask_price","bid_price","bid_amount"]
[1753732617711,8.0584872,185.52,185.46,47.2384872]
[1753732617900,8.7184872,185.52,185.47,26.0]
[1753732618105,47.2184872,185.57,185.46,47.2384872]
[1753732618106,8.7184872,185.51,185.46,39.18]
[1753732618303,8.0584872,185.51,185.46,39.18]
[1753732618621,8.7184872,185.54,185.48,8.0584872]
[1753732619124,8.0584872,185.52,185.47,8.0584872]
[1753732619320,8.0584872,185.51,185.47,5.39149149]
[1753732619621,8.7184872,185.51,185.47,5.39149149]
[1753732619926,8.7184872,185.51,185.46,47.2384872]
[1753732619927,0.66,185.5,185.46,44.5719578]
[1753732620120,0.66,185.49,185.46,44.5719578]
[1753732620430,8.0584872,185.51,185.46,52.630445]
[1753732621128,8.7284872,185.51,185.46,52.630445]
[1753732621632,8.7284872,185.5,185.46,44.5719578]
[1753732621801,0.67,185.49,185.46,44.5719578]
[1753732622222,8.7284872,185.51,185.46,44.5719578]
[1753732622435,8.0584872,185.51,185.46,44.5719578]
[1753732622732,0.67,185.5,185.46,44.5719578]
[1753732622930,1.6592,185.55,185.46,44.5719578]
[1753732623103,149.67,185.56,185.49,8.0584872]
[1753732623309,149.67,185.56,185.48,47.2184872]
[1753732623310,8.0584872,185.53,185.48,47.2184872]
[1753732623524,8.0584872,185.53,185.48,44.55115581]
[1753732623952,0.67,185.52,185.48,44.55115581]
[1753732624246,149.0,185.56,185.48,52.60964301]
[1753732624539,8.0584872,185.53,185.48,52.60964301]
[1753732624749,8.7284872,185.53,185.48,52.60964301]
[1753732624917,0.67,185.52,185.48,44.55115581]
[1753732625111,8.0584872,185.53,185.48,44.55115581]
[1753732625314,0.67,185.51,185.48,39.16]
[1753732626127,0.67,185.51,185.48,44.5513824]
[1753732626344,0.67,185.55,185.49,8.0584872]
[1753732626513,8.0584872,185.54,185.49,8.0584872]
[1753732626708,149.0,185.56,185.49,8.0584872]
[1753732626914,149.0,185.56,185.53,8.0584872]
[1753732627211,0.67,185.57,185.51,26.0]
[1753732627212,0.03,185.58,185.52,39.16]
[1753732627434,0.03,185.58,185.57,13.44728926]
[1753732627647,0.03,185.58,185.57,39.16]
[1753732627948,0.03,185.58,185.56,39.16]
[1753732627949,8.7584872,185.58,185.56,39.16]
[1753732628151,0.67,185.57,185.56,39.16]
[1753732628323,8.0884872,185.58,185.56,39.16]
[1753732628646,0.67,185.57,185.56,39.16]
[1753732631541,0.03,185.58,185.56,39.16]
[1753732631742,0.03,185.58,185.56,44.54892733]
[1753732632050,0.03,185.58,185.56,44.5490356]
[1753732632521,0.03,185.58,185.57,39.14]
[1753732633331,0.03,185.58,185.57,31.38880206]
[1753732633532,0.03,185.66,185.64,26.0]
[1753732633718,0.03,185.66,185.65,25.38181916]
[1753732634039,0.03,185.66,185.65,26.0]
[1753732634619,0.03,185.66,185.6,23.98797707]
[1753732634838,0.03,185.66,185.61,34.0584872]
[1753732634839,0.67,185.65,185.61,34.0584872]
[1753732635138,8.7284872,185.65,185.61,26.0]
[1753732635321,0.03,185.66,185.62,5.3873505]
[1753732635731,0.7,185.66,185.62,5.3873505]
[1753732635932,0.7,185.66,185.61,26.0]
[1753732635933,8.7284872,185.65,185.61,26.0]
[1753732636128,0.03,185.66,185.59,5.38814135]
[1753732636129,8.0584872,185.63,185.59,5.38814135]
[1753732636330,0.67,185.62,185.59,5.38814135]
[1753732637036,0.67,185.62,185.6,26.0]
[1753732637240,8.7284872,185.62,185.6,26.0]
[1753732638851,8.0584872,185.62,185.6,26.0]
[1753732639049,8.0584872,185.62,185.55,39.28216157]
[1753732639050,8.7284872,185.61,185.55,5.38938291]
[1753732639238,8.0584872,185.6,185.55,13.44787011]
[1753732639421,8.0584872,185.6,185.56,26.0]
[1753732639422,8.7284872,185.6,185.56,26.0]
[1753732640035,8.0584872,185.58,185.55,5.38938291]
[1753732640244,0.67,185.59,185.55,31.38938291]
[1753732640432,8.0584872,185.6,185.55,5.38938291]
[1753732640620,8.7284872,185.6,185.55,5.38938291]
[1753732640831,0.67,185.59,185.55,5.38938291]
[1753732641026,0.67,185.59,185.55,31.38938291]
[1753732641450,8.7284872,185.59,185.55,31.38938291]
[1753732641845,8.0584872,185.58,185.55,31.38938291]
[1753732642149,8.7284872,185.58,185.55,31.38938291]
[1753732644051,8.7284872,185.58,185.52,45.8045]
[1753732644283,8.0584872,185.57,185.52,47.1984872]
[1753732644467,39.14,185.6,185.51,5.39028102]
[1753732644468,0.67,185.56,185.51,5.39028102]
[1753732644759,8.0584872,185.55,185.51,5.39028102]
[1753732645046,0.67,185.54,185.51,5.39028102]
[1753732645251,0.67,185.53,185.5,31.39078743]
[1753732645436,8.0584872,185.51,185.46,8.0584872]
[1753732645627,8.0584872,185.51,185.46,13.45048547]
[1753732645838,8.7284872,185.52,185.46,13.45048547]
[1753732646036,39.14,185.55,185.49,26.0]
[1753732646037,0.67,185.55,185.49,26.0]
[1753732646340,8.0584872,185.53,185.48,8.0584872]
[1753732646539,8.0584872,185.51,185.46,13.45048547]
[1753732646746,8.7284872,185.51,185.46,5.39199827]
[1753732646933,8.7284872,185.51,185.46,31.39199827]
[1753732647136,8.7284872,185.51,185.46,5.39199827]
[1753732647441,8.0584872,185.51,185.46,34.0584872]
[1753732648463,8.7284872,185.51,185.46,34.0584872]
[1753732649052,0.67,185.51,185.46,34.0584872]
[1753732649463,0.67,185.51,185.47,5.39170755]
[1753732649641,8.0584872,185.49,185.45,0.06]
[1753732649842,8.0584872,185.46,185.45,0.06]
[1753732650150,8.7284872,185.46,185.45,0.06]
[1753732650582,8.0584872,185.48,185.45,0.06]
[1753732651046,8.7184872,185.48,185.45,0.06]
[1753732651252,0.66,185.48,185.45,0.06]
[1753732651452,0.66,185.48,185.46,0.06]
[1753732651652,8.7184872,185.48,185.46,0.06]
[1753732653658,0.66,185.47,185.46,0.06]
[1753732654061,8.0584872,185.48,185.46,0.06]
[1753732654242,8.7184872,185.47,185.46,0.06]
[1753732654671,0.66,185.47,185.46,0.06]
[1753732655170,8.7184872,185.47,185.46,0.06]
[1753732655466,0.66,185.47,185.46,0.06]
[1753732655658,8.0584872,185.48,185.46,0.06]
[1753732656249,8.7184872,185.48,185.46,0.06]
[1753732657274,0.66,185.47,185.46,0.06]
[1753732657862,8.7184872,185.47,185.46,0.06]
[1753732658074,0.66,185.47,185.46,0.06]
[1753732663380,0.66,185.57,185.49,42.78468397]
[1753732663585,3.57866165,185.61,185.56,4.95283441]
[1753732663878,3.97673046,185.6,185.58,4.95283441]
[1753732664065,0.69,185.62,185.58,4.95283441]
[1753732664266,3.97708572,185.61,185.58,4.95283441]
[1753732664781,0.69,185.62,185.58,8.05823152]
[1753732665173,0.66,185.61,185.57,8.05823152]
[1753732665555,0.66,185.61,185.58,5.38851169]
[1753732666155,0.03,185.62,185.58,5.38851169]
[1753732666500,0.03,185.62,185.6,8.05823152]
[1753732666663,0.69,185.62,185.58,13.44674321]
[1753732667565,8.71823152,185.61,185.57,5.38873607]
[1753732667861,0.66,185.6,185.57,5.38873607]
[1753732668059,0.66,185.6,185.57,13.44696759]
[1753732669181,8.74823152,185.62,185.57,13.44696759]
[1753732669484,0.66,185.61,185.57,13.44696759]
[1753732670464,0.03,185.62,185.59,8.05823152]
[1753732670681,0.03,185.62,185.6,8.05823152]
[1753732670878,0.03,185.62,185.59,8.05823152]
[1753732671390,0.03,185.62,185.58,8.05823152]
[1753732671991,0.69,185.62,185.58,8.05823152]
[1753732672373,0.69,185.62,185.59,5.38822134]
[1753732672879,8.05823152,185.6,185.56,39.14]
[1753732673386,8.71823152,185.6,185.56,39.14]
[1753732673604,8.05823152,185.58,185.56,39.14]
[1753732673896,0.66,185.57,185.54,5.3894614]
[1753732678681,8.05823152,185.57,185.53,39.12]
[1753732678888,8.71823152,185.56,185.53,39.12]
[1753732679970,8.71823152,185.56,185.53,44.50991722]
[1753732680275,8.05823152,185.57,185.53,44.50991722]
[1753732680471,149.66,185.61,185.55,8.05823152]
[1753732680767,149.0,185.61,185.59,8.05823152]
[1753732680981,0.03,185.62,185.58,8.05823152]
[1753732681183,0.69,185.62,185.58,8.05823152]
[1753732681399,0.69,185.62,185.57,5.38880206]
[1753732681694,0.69,185.62,185.59,8.05823152]
[1753732682297,0.03,185.62,185.59,8.05823152]
[1753732682592,0.03,185.62,185.6,8.05823152]
[1753732682791,0.03,185.62,185.6,13.44610501]
[1753732683570,0.03,185.62,185.6,8.05823152]
[1753732685190,0.03,185.62,185.59,44.48816183]
[1753732685394,0.03,185.62,185.59,52.54639335]
[1753732686993,0.03,185.62,185.59,49.43247876]
[1753732688900,4.94431693,185.6,185.54,0.06]
[1753732689089,0.69,185.62,185.59,4.94431693]
[1753732689392,0.69,185.62,185.58,4.94431693]
[1753732689770,0.03,185.62,185.58,4.94431693]
[1753732689972,0.66,185.61,185.58,4.94431693]
[1753732690174,0.66,185.61,185.57,49.43295317]
[1753732690998,4.97431693,185.62,185.57,44.04431693]
[1753732691187,5.60431693,185.61,185.57,39.1]
[1753732691396,4.94431693,185.61,185.57,39.1]
[1753732691692,0.66,185.6,185.57,39.1]
[1753732692073,0.66,185.6,185.57,44.48878597]
[1753732692274,0.66,185.6,185.57,39.1]
[1753732692996,0.66,185.6,185.57,44.48876433]
[1753732693190,0.66,185.6,185.57,39.1]
[1753732693905,4.97431693,185.62,185.57,49.43308355]
[1753732694294,0.66,185.61,185.57,49.43308355]
[1753732694683,0.03,185.62,185.57,44.48876662]
[1753732694994,0.69,185.62,185.58,4.94431693]
[1753732695188,0.03,185.62,185.59,4.94431693]
[1753732695391,0.03,185.62,185.61,4.94431693]
[1753732696176,0.03,185.62,185.6,44.02431693]
[1753732696378,0.03,185.62,185.6,39.08]
[1753732697998,0.03,185.62,185.6,49.41217596]
[1753732699597,0.03,185.62,185.59,10.33247826]
[1753732699809,0.03,185.62,185.6,44.02431693]
[1753732700404,0.03,185.62,185.6,39.08]
[1753732700608,0.03,185.62,185.6,49.41221351]
[1753732701176,0.03,185.62,185.61,4.94431693]
[1753732701597,0.03,185.62,185.6,44.46789658]
[1753732701809,0.03,185.62,185.6,49.41221351]
[1753732702404,0.03,185.62,185.61,5.483081]
[1753732702703,0.03,185.62,185.61,4.94431693]
[1753732703913,5.63431693,185.62,185.55,1.5661]
[1753732704200,5.60431693,185.61,185.56,44.00431693]
[1753732704409,0.03,185.62,185.56,44.00431693]
[1753732704410,0.03,185.62,185.6,21.7290009]
[1753732704583,0.03,185.62,185.61,44.543081]
[1753732704781,0.03,185.62,185.61,39.06]
[1753732705096,0.69,185.62,185.61,39.06]
[1753732706680,0.03,185.62,185.61,39.06]
[1753732709006,0.03,185.62,185.61,49.93072175]
[1753732709223,0.03,185.62,185.61,39.06]
[1753732709395,0.03,185.62,185.61,44.44764075]
[1753732710308,0.03,185.62,185.61,39.06]
[1753732710481,0.69,185.62,185.61,39.06]
[1753732710686,0.03,185.62,185.61,44.00431693]
[1753732711106,0.03,185.62,185.61,66.17664165]
[1753732711311,0.03,185.62,185.61,92.17664165]
[1753732711510,0.03,185.62,185.61,92.46096479]
[1753732711830,1e-08,185.62,185.61,68.07176479]
[1753732712316,1e-08,185.62,185.61,74.08706479]
[1753732716519,1e-08,185.62,185.61,74.08706479]
[1753732717185,149.66,185.71,185.65,16.78468397]
[1753732717389,0.66,185.71,185.7,4.94431693]
[1753732717600,0.66,185.71,185.7,39.04]
[1753732725424,1.5214,185.77,185.7,49.36934654]
[1753732725425,0.66,185.75,185.7,49.36934654]
[1753732725629,149.0,185.78,185.73,4.94431693]
[1753732725810,0.66,185.77,185.75,4.94431693]
[1753732726122,153.94431693,185.78,185.76,39.02]
[1753732726328,153.94431693,185.78,185.77,39.02]
[1753732726529,154.60431693,185.78,185.77,39.02]
[1753732727702,159.98709534,185.78,185.71,0.53847396]
[1753732727907,4.94431693,185.75,185.72,39.02]
[1753732728118,0.66,185.74,185.72,39.02]
[1753732728325,4.94431693,185.75,185.72,39.02]
[1753732728530,0.66,185.73,185.72,39.02]
[1753732731320,10.98847673,185.73,185.72,39.02]
[1753732731707,10.98847673,185.73,185.62,16.78468397]
[1753732731909,0.66,185.72,185.64,30.94431693]
[1753732732131,4.94431693,185.68,185.62,10.33166743]
[1753732732315,0.66,185.67,185.63,43.94431693]
[1753732732514,4.94431693,185.68,185.63,39.0]
[1753732732815,0.66,185.66,185.63,43.94431693]
[1753732733820,175.0,185.74,185.63,43.94431693]
[1753732734029,0.66,185.68,185.66,4.94431693]
[1753732734236,4.94431693,185.7,185.66,39.0]
[1753732734534,0.66,185.68,185.66,39.0]
[1753732736220,0.66,185.67,185.66,39.0]
[1753732739912,0.66,185.67,185.63,4.94431693]
[1753732740111,0.66,185.67,185.61,0.06]
[1753732740112,4.94431693,185.65,185.61,0.06]
[1753732740312,4.94431693,185.63,185.61,0.06]
[1753732740731,5.60431693,185.62,185.61,0.06]
[1753732741029,9.59821415,185.62,185.57,0.06]
[1753732741235,4.94431693,185.58,185.57,0.06]
[1753732741642,11.05282862,185.58,185.57,0.06]
[1753732742131,0.72,185.58,185.57,0.06]
[1753732742338,11.05282862,185.58,185.57,0.06]
[1753732742523,15.99714555,185.58,185.54,0.06]
[1753732742726,4.94431693,185.55,185.54,0.06]
[1753732743125,0.72,185.55,185.53,0.06]
[1753732743437,4.94431693,185.57,185.53,0.06]
[1753732743641,5.66431693,185.57,185.53,0.06]
[1753732743814,0.72,185.56,185.53,0.06]
[1753732744017,0.72,185.58,185.53,5.00431693]
[1753732744219,4.94431693,185.56,185.53,0.06]
[1753732744529,4.94431693,185.55,185.53,0.06]
[1753732744717,5.66431693,185.55,185.53,0.06]
[1753732745043,5.66431693,185.54,185.53,0.06]
[1753732746550,5.38851169,185.58,185.53,0.06]
[1753732746765,5.66431693,185.56,185.53,0.06]
[1753732747124,0.72,185.55,185.53,0.06]
[1753732747753,0.72,185.57,185.53,0.06]
[1753732748129,0.72,185.56,185.53,0.06]
[1753732748329,0.72,185.58,185.54,4.94431693]
[1753732748944,149.0,185.59,185.56,4.94431693]
[1753732749154,1.6025,185.63,185.56,4.94431693]
[1753732749155,0.72,185.63,185.58,4.94431693]
[1753732749449,0.72,185.62,185.58,4.94431693]
[1753732750230,0.72,185.61,185.57,39.0]
[1753732750633,5.38707055,185.63,185.57,43.94431693]
[1753732750838,0.72,185.61,185.57,43.94431693]
[1753732751037,4.94431693,185.62,185.57,43.94431693]
[1753732751261,0.72,185.6,185.57,43.94431693]
[1753732751454,0.72,185.6,185.57,39.0]
[1753732751824,0.72,185.63,185.59,4.94431693]
[1753732752156,155.10673955,185.65,185.6,4.94431693]
[1753732752351,5.66431693,185.64,185.58,4.94431693]
[1753732752540,5.66431693,185.63,185.58,4.94431693]
[1753732752727,0.72,185.62,185.58,4.94431693]
[1753732752927,4.94431693,185.6,185.57,39.0]
[1753732753257,5.66431693,185.62,185.57,4.94431693]
[1753732753436,0.72,185.62,185.57,4.94431693]
[1753732753635,154.38673955,185.65,185.6,4.94431693]
[1753732753636,154.66431693,185.65,185.6,4.94431693]
[1753732754051,149.72,185.65,185.61,4.94431693]
[1753732754274,0.72,185.64,185.59,39.0]
[1753732754429,0.72,185.64,185.55,43.94431693]
[1753732754760,0.72,185.64,185.58,4.94431693]
[1753732755059,149.0,185.65,185.61,4.94431693]
[1753732755239,154.66431693,185.65,185.6,4.94431693]
[1753732755556,4.94431693,185.63,185.59,39.0]
[1753732755748,4.94431693,185.62,185.59,39.0]
[1753732756138,0.72,185.61,185.59,39.0]
[1753732757345,5.66431693,185.63,185.59,39.0]
[1753732757640,0.72,185.62,185.59,39.0]
[1753732758044,10.33225855,185.6,185.55,39.0]
[1753732758258,5.66431693,185.59,185.55,39.0]
[1753732758436,0.72,185.58,185.55,39.0]
[1753732758636,5.66431693,185.57,185.55,39.0]
[1753732758838,5.66431693,185.56,185.53,0.06]
[1753732759052,4.94431693,185.55,185.53,0.06]
[1753732759254,0.72,185.55,185.53,0.06]
[1753732759433,4.94431693,185.56,185.53,0.06]
[1753732759936,5.66431693,185.56,185.53,0.06]
[1753732760142,4.94431693,185.54,185.53,0.06]
[1753732760369,10.33399031,185.54,185.53,0.06]
[1753732760532,11.05399031,185.54,185.53,0.06]
[1753732764287,11.33831345,185.54,185.53,0.06]
[1753732764989,0.72,185.54,185.53,0.06]
[1753732765283,5.38959653,185.55,185.53,0.06]
[1753732765486,5.66431693,185.54,185.53,0.06]
[1753732766161,11.05399031,185.54,185.53,0.06]
[1753732766460,11.33831345,185.54,185.53,0.06]
[1753732766776,28.12299742,185.54,185.5,0.06]
[1753732767091,4.94431693,185.51,185.5,0.06]
[1753732767271,0.72,185.53,185.5,0.06]
[1753732767471,4.94431693,185.51,185.5,0.06]
[1753732767794,4.94431693,185.57,185.5,5.31431693]
[1753732768085,4.94431693,185.58,185.53,4.94431693]
[1753732768276,5.66431693,185.58,185.52,4.94431693]
[1753732768459,4.94431693,185.57,185.51,5.25431693]
[1753732768855,4.94431693,185.57,185.51,10.6448071]
[1753732769089,4.94431693,185.57,185.52,4.94431693]
[1753732769260,4.94431693,185.57,185.52,0.31]
[1753732769466,0.72,185.57,185.52,5.25431693]
[1753732769675,5.66431693,185.57,185.52,5.25431693]
[1753732770273,4.94431693,185.54,185.5,0.06]
[1753732770686,0.72,185.54,185.5,0.06]
[1753732771080,5.66431693,185.54,185.5,0.06]
[1753732771275,0.71,185.54,185.51,4.94431693]
[1753732771483,4.94431693,185.55,185.5,5.00431693]
[1753732771683,0.71,185.56,185.5,5.00431693]
[1753732771907,4.94431693,185.55,185.5,5.00431693]
[1753732772283,5.65431693,185.55,185.5,5.00431693]
[1753732772467,5.65431693,185.55,185.5,0.06]
[1753732773276,4.94431693,185.55,185.5,0.06]
[1753732773477,5.38916778,185.56,185.5,0.2889]
[1753732773677,4.94431693,185.55,185.5,0.2889]
[1753732773878,0.9354,185.56,185.5,5.54321693]
[1753732774079,5.16971693,185.56,185.5,5.54321693]
[1753732774301,0.2254,185.56,185.52,4.94431693]
[1753732774491,0.2254,185.56,185.55,4.94431693]
[1753732774676,0.2254,185.56,185.53,0.84899638]
[1753732774875,0.2254,185.56,185.53,16.78468397]
[1753732775100,0.2254,185.56,185.53,21.7290009]
[1753732775582,0.2254,185.56,185.54,5.38967338]
[1753732775916,0.2254,185.56,185.55,4.94431693]
[1753732776075,0.2254,185.56,185.55,22.0390009]
[1753732776400,0.2254,185.56,185.54,38.98]
[1753732777371,0.2254,185.56,185.54,49.31397054]
[1753732777691,0.2254,185.56,185.55,4.94431693]
[1753732778002,0.2254,185.56,185.55,22.57793919]
[1753732778704,0.2254,185.56,185.55,31.08046233]
[1753732779432,0.2254,185.56,185.55,36.46984524]
[1753732779595,0.2254,185.56,185.55,36.1855221]
[1753732779995,0.2254,185.56,185.55,31.24120517]
[1753732780187,0.2254,185.56,185.55,36.1855221]
[1753732780388,0.2254,185.56,185.55,35.8755221]
[1753732780778,0.2254,185.56,185.55,36.1855221]
[1753732780979,0.2254,185.56,185.55,39.30054454]
[1753732781475,0.2254,185.56,185.55,32.35374454]
[1753732782107,0.2254,185.56,185.54,38.98]
[1753732782901,0.2254,185.56,185.55,8.59827766]
[1753732783076,0.2254,185.56,185.55,25.69296163]
[1753732783513,0.03,185.59,185.56,22.17377644]
[1753732783716,3.99808583,185.58,185.57,47.03933937]
[1753732784021,3.99808583,185.58,185.57,63.82402334]
[1753732784183,0.03,185.59,185.57,63.82402334]
[1753732784386,4.00071118,185.58,185.57,63.82402334]
[1753732784588,0.03,185.59,185.58,16.78468397]
[1753732784782,0.03,185.59,185.58,25.3828745]
[1753732785313,0.03,185.59,185.57,47.57821957]
[1753732785514,0.03,185.59,185.58,13.44785106]
[1753732785685,0.03,185.59,185.58,30.23253503]
[1753732785893,0.03,185.59,185.58,22.17319566]
[1753732786097,0.03,185.59,185.58,30.23253503]
[1753732786496,0.03,185.59,185.57,52.96697832]
[1753732787017,0.03,185.59,185.58,8.05933937]
[1753732787204,0.03,185.59,185.57,47.57821957]
[1753732787407,0.03,185.59,185.55,16.78468397]
[1753732787408,0.71,185.58,185.55,24.84402334]
[1753732787603,0.71,185.58,185.56,38.96]
[1753732788211,0.71,185.57,185.56,38.96]
[1753732788406,8.76933937,185.57,185.56,38.96]
[1753732788615,0.71,185.57,185.56,38.96]
[1753732789916,8.08933937,185.59,185.56,38.96]
[1753732790117,8.79933937,185.59,185.56,38.96]
[1753732790297,8.08933937,185.59,185.56,38.96]
[1753732790624,8.08933937,185.59,185.56,44.34909247]
[1753732790625,0.2229,185.57,185.56,44.34909247]
[1753732790825,0.2229,185.57,185.56,70.04202505]
[1753732792097,0.2229,185.57,185.56,69.73202505]
[1753732792499,0.2229,185.57,185.56,70.04202505]
[1753732793306,0.2229,185.57,185.56,69.73202505]
[1753732793993,0.2229,185.57,185.56,30.77202505]
[1753732794189,0.2229,185.57,185.56,47.01933937]
[1753732794442,0.9329,185.57,185.56,38.96]
[1753732794822,0.71,185.57,185.56,38.96]
[1753732795195,0.71,185.57,185.53,8.05933937]
[1753732795418,0.71,185.56,185.51,24.84402334]
[1753732795618,8.05933937,185.57,185.52,38.96]
[1753732795826,0.71,185.55,185.52,38.96]
[1753732796425,0.71,185.54,185.52,38.96]
[1753732796630,0.71,185.56,185.52,38.96]
[1753732796798,0.71,185.56,185.52,47.01933937]
[1753732796998,0.71,185.58,185.53,24.84402334]
[1753732797203,0.71,185.57,185.54,38.96]
[1753732797397,0.2213,185.55,185.54,38.96]
[1753732798102,0.2213,185.55,185.53,24.84402334]
[1753732798313,0.71,185.54,185.51,38.96]
[1753732798636,8.28063937,185.55,185.51,38.96]
[1753732798637,0.71,185.53,185.51,38.96]
[1753732798811,0.71,185.54,185.51,38.96]
[1753732799208,0.2213,185.55,185.52,8.05933937]
[1753732799411,0.2213,185.55,185.53,47.01933937]
[1753732800122,0.2213,185.55,185.53,38.96]
[1753732800531,0.2213,185.55,185.53,44.34995061]
[1753732801037,0.2213,185.55,185.53,38.96]
[1753732801620,0.2213,185.55,185.53,52.71922352]
[1753732801821,0.2213,185.55,185.54,8.05933937]
[1753732802941,0.2213,185.55,185.54,21.73165422]
[1753732804446,0.2213,185.55,185.54,27.4313276]
[1753732804615,0.03,185.59,185.58,16.78468397]
[1753732804815,0.03,185.59,185.58,61.23050538]
[1753732805148,0.03,185.59,185.58,66.77179877]
[1753732805437,0.03,185.59,185.58,22.27050538]
[1753732805744,0.03,185.59,185.58,61.23050538]
[1753732805937,0.03,185.59,185.58,87.23050538]
[1753732806145,0.03,185.59,185.58,66.77179877]
[1753732806326,0.03,185.59,185.58,72.16031046]
[1753732806655,0.03,185.61,185.6,43.06900711]
[1753732806816,0.03,185.66,185.65,17.06900711]
[1753732807135,0.03,185.66,185.65,64.90736837]
[1753732807434,0.03,185.66,185.65,64.31304523]
[1753732808130,0.03,185.66,185.65,64.90736837]
[1753732808333,0.03,185.66,185.65,70.2938483]
[1753732808717,0.03,185.66,185.65,69.9838483]
[1753732808923,0.03,185.66,185.65,25.37304523]
[1753732809228,0.03,185.66,185.65,69.69952516]
[1753732809934,0.03,185.66,185.65,70.00952516]
[1753732810318,0.03,185.66,185.65,70.2938483]
[1753732810944,0.03,185.66,185.65,30.75952516]
[1753732811130,0.03,185.66,185.65,70.2938483]
[1753732811321,1e-08,185.66,185.65,96.2938483]
[1753732812221,1e-08,185.69,185.68,42.78468397]
[1753732812421,1e-08,185.69,185.68,87.64885458]
[1753732812816,1e-08,185.69,185.68,95.69856785]
[1753732813022,1e-08,185.69,185.68,104.34260426]
[1753732813317,1e-08,185.69,185.68,103.8040433]
[1753732813521,0.1,185.75,185.69,0.28432314]
[1753732813739,3.59077474,185.87,185.75,16.92684554]
[1753732813941,0.69,185.83,185.82,8.04971327]
[1753732814254,0.69,185.83,185.82,38.92]
[1753732814472,14.12097571,185.83,185.8,38.92]
[1753732814621,8.73971327,185.82,185.8,38.92]
[1753732814962,0.69,185.81,185.8,38.92]
[1753732815257,26.0,185.8,185.73,16.78468397]
[1753732815421,0.69,185.79,185.75,16.78468397]
[1753732815622,3.98247768,185.78,185.77,24.83439724]
[1753732815931,0.69,185.79,185.77,63.75439724]
[1753732816129,11.63548754,185.83,185.71,26.59432314]
[1753732816130,8.73971327,185.78,185.71,8.04971327]
[1753732816334,8.04971327,185.76,185.72,38.94]
[1753732816631,0.69,185.75,185.72,38.94]
[1753732816938,0.69,185.75,185.72,38.96]
[1753732817119,0.69,185.74,185.72,38.96]
[1753732817516,0.69,185.74,185.7,8.04971327]
[1753732817740,0.69,185.74,185.71,38.96]
[1753732818142,0.69,185.74,185.71,39.49847396]
[1753732818347,8.04971327,185.72,185.71,38.96]
[1753732818655,8.73971327,185.72,185.71,38.96]
[1753732819025,8.73971327,185.72,185.67,16.78468397]
[1753732819220,5.38427159,185.73,185.66,30.2205416]
[1753732819221,8.04971327,185.71,185.69,38.96]
[1753732819433,0.69,185.7,185.69,38.96]
[1753732819657,0.69,185.7,185.66,8.04971327]
[1753732819955,0.69,185.75,185.69,8.04971327]
[1753732820140,0.69,185.74,185.71,8.04971327]
[1753732820350,0.69,185.74,185.67,8.04971327]
[1753732820524,8.04971327,185.69,185.67,39.18]
[1753732820736,8.73971327,185.68,185.67,39.18]
[1753732820940,0.69,185.68,185.67,39.18]
[1753732821362,8.73971327,185.68,185.6,8.81740637]
[1753732821571,8.04971327,185.65,185.61,39.18]
[1753732821949,0.69,185.64,185.61,39.18]
[1753732822765,0.69,185.63,185.61,39.18]
[1753732822968,8.73971327,185.65,185.61,44.56753811]
[1753732823178,0.69,185.64,185.61,44.56753811]
[1753732823338,8.73971327,185.66,185.62,0.53873505]
[1753732823685,8.73971327,185.69,185.64,8.04971327]
[1753732823978,8.04971327,185.66,185.65,39.14]
[1753732824265,8.73971327,185.66,185.64,39.16]
[1753732824440,14.1261932,185.65,185.64,39.16]
[1753732824648,14.1261932,185.65,185.62,39.16]